fUSD/lending_fUSD_20240327
["ID","MTS","AMOUNT","RATE_DAILY","PERIOD"]
[320778962,1711553496296,-635.02,0.00055342,120]
[320778963,1711553496308,-500.0,0.00055342,120]
[320778964,1711553496319,-500.0,0.00055342,120]
[320778965,1711553496329,-500.0,0.00055342,120]
[320778966,1711553496339,-500.0,0.00055342,120]
[320778967,1711553496350,-500.0,0.00055342,120]
[320778968,1711553496362,-500.0,0.00055342,120]
[320778969,1711553496372,-500.0,0.00055342,120]
[320778970,1711553496382,-575.61,0.00055342,120]
[320778971,1711553496392,-265.45454471,0.00055342,120]
[320778972,1711553496402,-2001.34,0.00055342,120]
[320778973,1711553496413,-554.28,0.00055342,120]
[320778974,1711553496423,-1018.81,0.00055342,120]
[320778975,1711553496434,-500.0,0.00055342,120]
[320778976,1711553496444,-500.0,0.00055342,120]
[320778977,1711553496454,-500.0,0.00055342,120]
[320778978,1711553496464,-1637.71,0.00055342,120]
[320778979,1711553496474,-654.52,0.00055342,120]
[320778980,1711553496485,-528.03,0.00055342,120]
[320778981,1711553496495,-574.63,0.00055342,120]
[320778982,1711553496506,-1671.89,0.00055342,120]
[320778983,1711553496517,-500.0,0.00055342,120]
[320778984,1711553496527,-700.77,0.00055342,120]
[320778985,1711553496540,-500.0,0.00055342,120]
[320778986,1711553496550,-513.3,0.00055342,120]
[320778987,1711553496560,-684.31,0.00055342,120]
[320778988,1711553496572,-500.0,0.00055342,120]
[320778989,1711553496582,-500.0,0.00055342,120]
[320778990,1711553496592,-500.0,0.00055342,120]
[320778991,1711553496603,-500.0,0.00055342,120]
[320778992,1711553496617,-858.96,0.00055342,120]
[320778993,1711553496628,-500.0,0.00055342,120]
[320778994,1711553496638,-968.08,0.00055342,120]
[320778995,1711553496648,-500.0,0.00055342,120]
[320778996,1711553496658,-500.0,0.00055342,120]
[320778997,1711553496669,-500.0,0.00055342,120]
[320778998,1711553496679,-500.0,0.00055342,120]
[320778999,1711553496690,-360.78982427,0.00055342,120]
[320779000,1711553496701,-2283.82,0.00055342,120]
[320779001,1711553496712,-1165.63,0.00055342,120]
[320779002,1711553496722,-151.0,0.00055342,120]
[320779003,1711553496733,-500.0,0.00055342,120]
[320779004,1711553496744,-500.0,0.00055342,120]
[320779005,1711553496755,-151.0,0.00055342,120]
[320779006,1711553496766,-500.0,0.00055342,120]
[320779007,1711553496777,-500.0,0.00055342,120]
[320779008,1711553496788,-500.0,0.00055342,120]
[320779009,1711553496798,-500.0,0.00055342,120]
[320779010,1711553496809,-876.96,0.00055342,120]
[320779011,1711553496820,-500.0,0.00055342,120]
[320779012,1711553496830,-500.0,0.00055342,120]
[320779013,1711553496851,-1197.31,0.00055342,120]
[320779014,1711553496868,-500.0,0.00055342,120]
[320779015,1711553496878,-500.0,0.00055342,120]
[320779016,1711553496889,-500.0,0.00055342,120]
[320779017,1711553496900,-530.5,0.00055342,120]
[320779018,1711553496910,-2080.52,0.00055342,120]
[320779019,1711553496921,-675.93,0.00055342,120]
[320779020,1711553496932,-539.72,0.00055342,120]
[320779021,1711553496942,-500.0,0.00055342,120]
[320779022,1711553496953,-500.0,0.00055342,120]
[320779023,1711553496964,-500.0,0.00055342,120]
[320779024,1711553496974,-502.0,0.00055342,120]
[320779025,1711553496984,-522.73,0.00055342,120]
[320779026,1711553496995,-892.37,0.00055342,120]
[320779027,1711553497005,-500.0,0.00055342,120]
[320779028,1711553497016,-500.0,0.00055342,120]
[320779029,1711553497027,-597.52,0.00055342,60]
[320779030,1711553497038,-682.95,0.00055342,120]
[320779031,1711553497048,-508.03,0.00055342,120]
[320779032,1711553497059,-407.80912159,0.00055342,120]
[320779033,1711553497068,-528.79,0.00055342,120]
[320779034,1711553497079,-772.97,0.00055342,120]
[320779035,1711553497089,-500.0,0.00055342,120]
[320779036,1711553497099,-500.0,0.00055342,120]
[320779037,1711553497111,-500.0,0.00055342,120]
[320779038,1711553497122,-557.54,0.00055342,120]
[320779039,1711553497132,-500.0,0.00055342,120]
[320779040,1711553497142,-1075.76,0.00055342,120]
[320779041,1711553497152,-1899.62,0.00055342,120]
[320779042,1711553497162,-500.0,0.00055342,120]
[320779043,1711553497173,-151.0,0.00055342,120]
[320779044,1711553497183,-500.0,0.00055342,120]
[320779045,1711553497193,-1060.57,0.00055342,120]
[320779046,1711553497203,-564.37,0.00055342,120]
[320779047,1711553497213,-500.0,0.00055342,120]
[320779048,1711553497223,-151.0,0.00055342,120]
[320779049,1711553497636,-500.0,0.00055342,120]
[320779050,1711553497646,-500.0,0.00055342,120]
[320779051,1711553497656,-500.0,0.00055342,120]
[320779052,1711553497666,-500.0,0.00055342,120]
[320779053,1711553497676,-500.02011406,0.00055342,120]
[320779054,1711553497686,-500.0,0.00055342,120]
[320779055,1711553497695,-649.4,0.00055342,120]
[320779056,1711553497706,-1018.91,0.00055342,120]
[320779057,1711553497716,-500.0,0.00055342,120]
[320779058,1711553497726,-562.77,0.00055342,120]
[320779059,1711553497736,-500.0,0.00055342,120]
[320779060,1711553497745,-500.0,0.00055342,120]
[320779061,1711553497755,-575.15,0.00055342,120]
[320779062,1711553497765,-500.0,0.00055342,120]
[320779063,1711553497774,-500.0,0.00055342,120]
[320779064,1711553497784,-500.0,0.00055342,120]
[320779065,1711553497793,-500.0,0.00055342,120]
[320779066,1711553497803,-1651.75,0.00055342,120]
[320779067,1711553497813,-500.0,0.00055342,120]
[320779068,1711553497823,-500.0,0.00055342,120]
[320779069,1711553497833,-674.47,0.00055342,120]
[320779070,1711553497843,-562.04,0.00055342,120]
[320779071,1711553497852,-506.91,0.00055342,120]
[320779072,1711553497867,-716.75,0.00055342,120]
[320779073,1711553497877,-151.0,0.00055342,120]
[320779074,1711553497887,-887.0,0.00055342,120]
[320779075,1711553497897,-530.64,0.00055342,120]
[320779076,1711553497906,-705.95,0.00055342,120]
[320779077,1711553497916,-500.0,0.00055342,120]
[320779078,1711553497927,-500.0,0.00055342,120]
[320779079,1711553497937,-500.0,0.00055342,120]
[320779080,1711553497947,-500.0,0.00055342,120]
[320779081,1711553497957,-500.0,0.00055342,120]
[320779082,1711553497972,-500.0,0.00055342,120]
[320779083,1711553497982,-1177.51,0.00055342,120]
[320779084,1711553497993,-1566.83,0.00055342,120]
[320779085,1711553498003,-1093.81,0.00055342,120]
[320779086,1711553498012,-1048.37,0.00055342,120]
[320779087,1711553498022,-151.0,0.00055342,120]
[320779088,1711553498032,-500.0,0.00055342,120]
[320779089,1711553498041,-500.0,0.00055342,120]
[320779090,1711553498052,-500.0,0.00055342,2]
[320779091,1711553498062,-299.658258,0.00055342,120]
[320779092,1711553498072,-500.0,0.00055342,120]
[320779093,1711553498082,-299.658258,0.00055342,120]
[320779094,1711553498093,-500.0,0.00055342,120]
[320779095,1711553498103,-939.72,0.00055342,120]
[320779096,1711553498118,-500.0,0.00055342,120]
[320779097,1711553498128,-500.0,0.00055342,120]
[320779098,1711553498139,-521.36,0.00055342,120]
[320779099,1711553498149,-500.0,0.00055342,120]
[320779100,1711553498160,-1763.11,0.00055342,120]
[320779101,1711553498170,-500.0,0.00055342,120]
[320779102,1711553498179,-1714.3,0.00055342,120]
[320779103,1711553498190,-500.0,0.00055342,120]
[320779104,1711553498200,-559.21,0.00055342,120]
[320779105,1711553498210,-500.0,0.00055342,120]
[320779106,1711553498220,-428.702658,0.00055342,120]
[320779107,1711553498231,-504.74,0.00055342,120]
[320779108,1711553498241,-500.0,0.00055342,120]
[320779109,1711553498252,-591.74,0.00055342,120]
[320779110,1711553498262,-428.702658,0.00055342,120]
[320779111,1711553498273,-694.27,0.00055342,120]
[320779112,1711553498284,-380.403172,0.00055342,120]
[320779113,1711553498294,-267.943205,0.00055342,120]
[320779114,1711553498305,-500.0,0.00055342,120]
[320779115,1711553498315,-267.943205,0.00055342,120]
[320779116,1711553498325,-500.0,0.00055342,120]
[320779117,1711553498334,-1080.54,0.00055342,120]
[320779118,1711553498345,-380.403172,0.00055342,120]
[320779119,1711553498355,-592.86,0.00055342,120]
[320779120,1711553498369,-170.698956,0.00055342,120]
[320779121,1711553498379,-813.35,0.00055342,120]
[320779122,1711553498389,-500.0,0.00055342,120]
[320779123,1711553498399,-611.66,0.00055342,120]
[320779124,1711553498409,-170.698956,0.00055342,120]
[320779125,1711553498419,-1029.47,0.00055342,120]
[320779126,1711553498429,-500.0,0.00055342,120]
[320779127,1711553498440,-1471.99,0.00055342,120]
[320779128,1711553498449,-656.529362,0.00055342,120]
[320779129,1711553498460,-500.0,0.00055342,120]
[320779130,1711553498472,-500.0,0.00055342,120]
[320779131,1711553498483,-933.64,0.00055342,120]
[320779132,1711553498495,-656.529362,0.00055342,120]
[320779133,1711553498504,-500.0,0.00055342,120]
[320779134,1711553498514,-500.0,0.00055342,120]
[320779135,1711553498524,-670.02,0.00055342,120]
[320779136,1711553498539,-500.0,0.00055342,120]
[320779137,1711553498548,-3451.06,0.00055342,120]
[320779138,1711553498559,-500.0,0.00055342,120]
[320779139,1711553498569,-500.0,0.00055342,120]
[320779140,1711553498580,-537.93,0.00055342,120]
[320779141,1711553498591,-500.0,0.00055342,120]
[320779142,1711553498603,-500.0,0.00055342,120]
[320779143,1711553498617,-280.0,0.00055342,60]
[320779144,1711553498627,-500.0,0.00055342,120]
[320779145,1711553498637,-500.0,0.00055342,120]
[320779146,1711553498646,-280.0,0.00055342,60]
[320779147,1711553498656,-1455.25,0.00055342,120]
[320779148,1711553498665,-500.0,0.00055342,120]
[320779149,1711553498676,-876.62,0.00055342,30]
[320779150,1711553498686,-500.0,0.00055342,120]
[320779151,1711553498695,-500.0,0.00055342,120]
[320779152,1711553498706,-500.0,0.00055342,120]
[320779153,1711553498715,-500.0,0.00055342,120]
[320779154,1711553498725,-500.0,0.00055342,120]
[320779155,1711553498735,-1586.12,0.00055342,120]
[320779156,1711553498745,-500.0,0.00055342,120]
[320779157,1711553498754,-500.0,0.00055342,120]
[320779158,1711553498764,-1030.5,0.00055342,120]
[320779159,1711553498774,-513.22,0.00055342,120]
[320779160,1711553498784,-500.0,0.00055342,120]
[320779161,1711553498793,-500.0,0.00055342,120]
[320779162,1711553498803,-683.85,0.00055342,120]
[320779163,1711553498812,-612.38,0.00055342,120]
[320779164,1711553498822,-1558.48,0.00055342,120]
[320779165,1711553498831,-500.0,0.00055342,120]
[320779166,1711553498840,-500.0,0.00055342,120]
[320779167,1711553498850,-500.0,0.00055342,120]
[320779168,1711553498861,-826.85,0.00055342,120]
[320779169,1711553498870,-856.93,0.00055342,120]
[320779170,1711553498880,-363.51,0.00055342,120]
[320779171,1711553498890,-602.87,0.00055342,120]
[320779172,1711553498899,-500.0,0.00055342,120]
[320779173,1711553498909,-823.8,0.00055342,120]
[320779174,1711553498918,-500.0,0.00055342,120]
[320779175,1711553498930,-852.96,0.00055342,120]
[320779176,1711553498939,-500.0,0.00055342,120]
[320779177,1711553498949,-828.58,0.00055342,120]
[320779178,1711553498958,-500.0,0.00055342,120]
[320779179,1711553498967,-500.0,0.00055342,120]
[320779180,1711553498977,-500.0,0.00055342,120]
[320779181,1711553498987,-1646.63,0.00055342,120]
[320779182,1711553498997,-383.03787952,0.00055342,120]
[320779183,1711553499006,-500.0,0.00055342,120]
[320779184,1711553499015,-500.0,0.00055342,120]
[320779185,1711553499025,-500.0,0.00055342,120]
[320779186,1711553499035,-500.0,0.00055342,120]
[320779187,1711553499045,-500.0,0.00055342,120]
[320779188,1711553499055,-500.0,0.00055342,120]
[320779189,1711553499066,-500.0,0.00055342,120]
[320779190,1711553499077,-500.0,0.00055342,120]
[320779191,1711553499087,-500.0,0.00055342,120]
[320779192,1711553499096,-500.0,0.00055342,120]
[320779193,1711553499106,-797.87,0.00055342,120]
[320779194,1711553499119,-668.8,0.00055342,120]
[320779195,1711553499128,-500.0,0.00055342,120]
[320779196,1711553499138,-192.5,0.00055342,120]
[320779197,1711553499149,-500.0,0.00055342,120]
[320779198,1711553499158,-500.0,0.00055342,120]
[320779199,1711553499168,-1081.33,0.00055342,120]
[320779200,1711553499179,-187.92,0.00055342,120]
[320779201,1711553499188,-462.22031,0.00055342,120]
[320779202,1711553499197,-151.0,0.00055342,120]
[320779203,1711553499207,-543.77,0.00055342,120]
[320779204,1711553499217,-462.22031,0.00055342,120]
[320779205,1711553499227,-500.0,0.00055342,120]
[320779206,1711553499237,-668.96,0.00055342,120]
[320779207,1711553499248,-861.28,0.00055342,120]
[320779208,1711553499260,-500.0,0.00055342,120]
[320779209,1711553499269,-500.0,0.00055342,120]
[320779210,1711553499279,-686.87,0.00055342,120]
[320779211,1711553499289,-151.0,0.00055342,120]
[320779212,1711553499298,-500.0,0.00055342,120]
[320779213,1711553499307,-1655.1,0.00055342,120]
[320779214,1711553499317,-1331.8,0.00055342,120]
[320779215,1711553499326,-736.21,0.00055342,120]
[320779216,1711553499335,-500.0,0.00055342,120]
[320779217,1711553499346,-8854.03,0.00055342,120]
[320779218,1711553499356,-500.0,0.00055342,120]
[320779219,1711553499368,-625.06,0.00055342,120]
[320779220,1711553499377,-500.0,0.00055342,120]
[320779221,1711553499386,-569.7,0.00055342,120]
[320779222,1711553499395,-1026.49,0.00055342,120]
[320779223,1711553499405,-969.83,0.00055342,120]
[320779224,1711553499416,-313.66,0.00055342,120]
[320779225,1711553499426,-500.0,0.00055342,120]
[320779226,1711553499435,-1814.83,0.00055342,120]
[320779227,1711553499444,-500.0,0.00055342,120]
[320779228,1711553499453,-500.0,0.00055342,120]
[320779229,1711553499462,-191.038377,0.00055342,120]
[320779230,1711553499472,-913.83,0.00055342,120]
[320779231,1711553499481,-1786.6,0.00055342,120]
[320779232,1711553499493,-500.0,0.00055342,7]
[320779233,1711553499502,-191.038377,0.00055342,120]
[320779234,1711553499511,-513.04,0.00055342,120]
[320779235,1711553499521,-901.38,0.00055342,120]
[320779236,1711553499531,-607.18,0.00055342,120]
[320779237,1711553499543,-1568.8,0.00055342,120]
[320779238,1711553499552,-760.83,0.00055342,120]
[320779239,1711553499561,-1186.25,0.00055342,120]
[320779240,1711553499571,-216.46412,0.00055342,120]
[320779241,1711553499580,-6991.21,0.00055342,120]
[320779242,1711553499590,-1537.94,0.00055342,120]
[320779243,1711553499599,-500.0,0.00055342,120]
[320779244,1711553499611,-900.9,0.00055342,120]
[320779245,1711553499621,-500.0,0.00055342,120]
[320779246,1711553499631,-500.0,0.00055342,120]
[320779247,1711553499641,-674.89,0.00055342,120]
[320779248,1711553499650,-588.79,0.00055342,120]
[320779249,1711553499659,-13451.5,0.00055342,120]
[320779250,1711553499670,-4580.08,0.00055342,120]
[320779251,1711553499681,-501.05,0.00055342,120]
[320779252,1711553499691,-500.0,0.00055342,120]
[320779253,1711553499701,-500.0,0.00055342,120]
[320779254,1711553499711,-5189.29,0.00055342,120]
[320779255,1711553499720,-591.81,0.00055342,120]
[320779256,1711553499730,-500.0,0.00055342,120]
[320779257,1711553499741,-550.61,0.00055342,120]
[320779258,1711553499751,-761.47,0.00055342,120]
[320779259,1711553499762,-595.42,0.00055342,120]
[320779260,1711553499772,-2785.35,0.00055342,120]
[320779261,1711553499781,-67609.91,0.00055342,120]
[320779262,1711553499791,-500.0,0.00055342,120]
[320779263,1711553499800,-500.0,0.00055342,120]
[320779264,1711553499809,-500.0,0.00055342,120]
[320779265,1711553499819,-671.65,0.00055342,120]
[320779266,1711553499829,-5671.67,0.00055342,120]
[320779267,1711553499839,-500.0,0.00055342,120]
[320779268,1711553499849,-3381.36,0.00055342,120]
[320779269,1711553499861,-1358.4,0.00055342,120]
[320779270,1711553499871,-500.0,0.00055342,120]
[320779271,1711553499882,-2092.96,0.00055342,120]
[320779272,1711553499892,-182.18,0.00055342,120]
[320779273,1711553499901,-1243.56,0.00055342,120]
[320779274,1711553499911,-6690.64,0.00055342,120]
[320779275,1711553499921,-222.72,0.00055342,120]
[320779276,1711553499931,-500.0,0.00055342,120]
[320779277,1711553499941,-149.70549501,0.00055342,120]
[320779278,1711553500079,-224.01259758,0.00024,2]
[320779279,1711553500090,-600.88450499,0.00055342,120]
[320779280,1711553500100,-741.12,0.00055342,120]
[320779281,1711553500112,-123.15860817,0.00055342,120]
[320779282,1711553500228,-288.24024365,0.00047163,30]
[320779283,1711553500238,-404.58103493,0.00055342,120]
[320779284,1711553500247,-3086.02,0.00055342,120]
[320779285,1711553500257,-151.0,0.00055342,120]
[320779286,1711553500266,-392.76929628,0.00055342,120]
[320779288,1711554416173,-254.56799923,0.00018682,2]
[320779341,1711554631696,-331.95445614,0.00018308,2]
[320779344,1711554631706,-323.88940871,0.00018308,2]
[320779347,1711554631716,-1242.128098,0.00018309,2]
[320779349,1711554631725,-424.72957603,0.00018401,2]
[320779351,1711554631734,-214.31452499,0.00018402,2]
[320779352,1711554631748,-51.58829823,0.00018402,2]
[320779353,1711554631761,-1402.71365188,0.00018499,2]
[320779354,1711554631771,-406.2273307,0.00018499,2]
[320779355,1711554632043,-1487.89757496,0.000185,2]
[320779356,1711554632145,-150.0,0.00018681,2]
[320779357,1711554632156,-713.42128508,0.00018681,2]
[320779358,1711554632169,-1038.69033824,0.00018681,2]
[320779359,1711554632182,-14335.92712853,0.00018681,2]
[320779360,1711554632191,-1106.48688009,0.00018682,2]
[320779361,1711554632204,-1410.2626,0.00018682,2]
[320779362,1711554632262,-1795.15488874,0.00018682,2]
[320779363,1711554632283,-4144.26708576,0.00018682,2]
[320779364,1711554632295,-1748.1097352,0.00018682,2]
[320779365,1711554632311,-11192.68180213,0.00018682,2]
[320779366,1711554632323,-6753.00794544,0.00018682,2]
[320779367,1711554632333,-197.04791015,0.00018688,2]
[320779368,1711554632343,-150.99,0.00018688,2]
[320779369,1711554632353,-499.99,0.00018688,2]
[320779370,1711554632362,-159.75953506,0.00018695,2]
[320779371,1711554632371,-6819.98,0.00018695,2]
[320779372,1711554632381,-150.0,0.00018877,2]
[320779373,1711554632390,-1039.8118,0.00018893,2]
[320779374,1711554632400,-7172.17052039,0.00018895,2]
[320779375,1711554632409,-938.37870965,0.00018896,2]
[320779376,1711554632419,-295.41221015,0.00018896,2]
[320779377,1711554632428,-1631.08374998,0.00018896,2]
[320779378,1711554632438,-236.90653803,0.00018896,2]
[320779379,1711554632447,-2268.72,0.00018896,2]
[320779380,1711554632457,-232.55765196,0.00019,2]
[320779381,1711554632466,-1249.19045626,0.0002,2]
[320779382,1711554632475,-2342.08393912,0.0002,2]
[320779383,1711554632486,-155.0,0.0002,2]
[320779384,1711554632495,-3045.64301195,0.0002,2]
[320779385,1711554632506,-591.0994759,0.0002,2]
[320779386,1711554632516,-150.99,0.0002,2]
[320779387,1711554632526,-210.0,0.00020549,2]
[320779388,1711554632536,-2269.1536681,0.00020941,2]
[320779389,1711554632545,-351.56542253,0.00020942,2]
[320779390,1711554632555,-304.74492673,0.00021145,2]
[320779392,1711554632568,-50.77507327,0.00021145,2]
[320779395,1711554632578,-394.17427848,0.00021145,2]
[320779396,1711554632592,-394.17427848,0.00021145,2]
[320779398,1711554632602,-147.34034504,0.00021145,2]
[320779401,1711554632614,-246.83393344,0.00021145,2]
[320779403,1711554632623,-445.55633578,0.00021151,2]
[320779404,1711554632632,-194.42502538,0.00021152,2]
[320779405,1711554632642,-500.0,0.00021152,2]
[320779406,1711554632652,-500.0,0.00021152,2]
[320779407,1711554632661,-388.40176565,0.00021152,2]
[320779408,1711554632673,-111.59823435,0.00021152,2]
[320779409,1711554632682,-500.0,0.00021152,2]
[320779410,1711554632692,-500.0,0.00021152,2]
[320779411,1711554632701,-391.2189936,0.00021152,2]
[320779412,1711554632711,-500.0,0.00021152,2]
[320779413,1711554632720,-190.57620764,0.00021153,2]
[320779414,1711554632730,-347.23082454,0.00021153,2]
[320779415,1711554632739,-1079.34879825,0.00021153,2]
[320779416,1711554632749,-1419.39117622,0.00021153,2]
[320779417,1711554632760,-68.44256033,0.00021153,2]
[320779418,1711554632819,-1540.55571985,0.00021153,2]
[320779419,1711554632828,-709.35704916,0.00021153,2]
[320779420,1711554632838,-173.19731869,0.00021153,2]
[320779421,1711554632848,-155.0,0.00021153,2]
[320779422,1711554632859,-617.70872545,0.00021153,2]
[320779423,1711554632869,-804.18118685,0.00021153,2]
[320779424,1711554632882,-413.51283844,0.00021153,2]
[320779425,1711554632893,-320.69484444,0.00021153,2]
[320779426,1711554632904,-393.27862831,0.00021153,2]
[320779427,1711554632915,-155.0,0.00021153,2]
[320779428,1711554632925,-206.23384764,0.00021154,2]
[320779429,1711554632935,-1873.32177813,0.00021155,2]
[320779430,1711554632982,-457.0122,0.00021155,2]
[320779431,1711554633033,-399.11744912,0.00021155,2]
[320779440,1711554637651,-838.86498246,0.00021155,2]
[320779441,1711554637663,-1273.07360979,0.00021155,2]
[320779442,1711554637731,-6793.46,0.00021155,2]
[320779443,1711554637773,-93.43732812,0.00021155,2]
[320779444,1711554637797,-668.28,0.00021155,2]
[320779445,1711554637812,-355.36039369,0.00021155,2]
[320779446,1711554637822,-155.30796808,0.00021642,2]
[320779447,1711554637831,-156.06779099,0.00021643,3]
[320779448,1711554637841,-155.0,0.00021643,2]
[320779449,1711554637850,-155.67402494,0.00021643,2]
[320779450,1711554637859,-394.17427848,0.0002199,2]
[320779451,1711554637869,-644.17906747,0.00022,2]
[320779452,1711554637878,-780.88336166,0.00022,2]
[320779453,1711554637887,-1921.96437535,0.0002354,2]
[320779454,1711554637896,-224.14757046,0.00024,2]
[320779455,1711554637906,-159.75953502,0.00024695,2]
[320779456,1711554637916,-394.17427848,0.00025706,2]
[320779457,1711554637926,-517.24,0.00025716,2]
[320779458,1711554637935,-200.0,0.00025991,2]
[320779459,1711554637955,-394.17427848,0.00026166,2]
[320779460,1711554637967,-394.17427848,0.00026166,2]
[320779461,1711554637976,-200.0,0.00026173,2]
[320779462,1711554637985,-901.63,0.00026173,2]
[320779463,1711554637996,-6882.74,0.00026177,2]
[320779464,1711554638007,-271.64,0.00026182,2]
[320779465,1711554638016,-394.17427848,0.0002626,2]
[320779466,1711554638026,-1000.0,0.0002627,2]
[320779467,1711554638035,-500.0,0.00026336,2]
[320779468,1711554638044,-559.35,0.00026345,2]
[320779469,1711554638054,-500.0,0.00026348,2]
[320779470,1711554638063,-394.17427848,0.00026403,2]
[320779471,1711554638073,-394.17427848,0.00026403,2]
[320779472,1711554638083,-394.17427848,0.00026403,2]
[320779473,1711554638092,-10000.0,0.00026413,2]
[320779475,1711554638102,-394.17427848,0.0002699,2]
[320779477,1711554638111,-250.0,0.00027,3]
[320779479,1711554638120,-174.52,0.00027448,2]
[320779481,1711554638130,-435.62,0.00027462,2]
[320779483,1711554638139,-250.0,0.00027656,2]
[320779484,1711554638148,-250.0,0.00027695,2]
[320779485,1711554638158,-517.24,0.0002798,2]
[320779486,1711554638167,-200.0,0.00028,2]
[320779487,1711554638177,-150.3,0.00028393,2]
[320779489,1711554638186,-1574.46,0.00028668,2]
[320779491,1711554638196,-921.44,0.00028732,2]
[320779493,1711554638205,-200.0,0.00028783,120]
[320779495,1711554638214,-394.17427848,0.00028946,2]
[320779497,1711554638223,-1142.57,0.00028956,2]
[320779500,1711554638233,-300.0,0.00029,3]
[320779502,1711554638242,-150.3,0.00029241,2]
[320779504,1711554638251,-1000.0,0.00029554,2]
[320779505,1711554638263,-394.17427848,0.00029579,2]
[320779507,1711554638273,-1178.91419881,0.00029589,28]
[320779510,1711554638282,-394.17427848,0.00029783,2]
[320779511,1711554638291,-365.65,0.00029787,2]
[320779513,1711554638300,-2614.46,0.00029793,2]
[320779515,1711554638309,-365.65,0.00029869,2]
[320779517,1711554638319,-365.65,0.0002995,2]
[320779519,1711554638329,-394.17427848,0.0002998,2]
[320779522,1711554638345,-2633.36473626,0.0002999,2]
[320779523,1711554638354,-250.0,0.0003,2]
[320779526,1711554638364,-365.65,0.00030032,2]
[320779528,1711554638372,-150.3,0.00030089,2]
[320779530,1711554638382,-365.65,0.00030114,2]
[320779532,1711554638391,-365.65,0.00030195,2]
[320779534,1711554638404,-269.72,0.00030233,2]
[320779536,1711554638413,-394.17427848,0.00030234,2]
[320779538,1711554638422,-517.24,0.00030244,2]
[320779540,1711554638432,-365.65,0.00030277,2]
[320779542,1711554638441,-150.0,0.00030305,2]
[320779544,1711554638450,-365.65,0.00030359,2]
[320779546,1711554638460,-394.17427848,0.00030416,2]
[320779548,1711554638469,-365.65,0.00030441,2]
[320779550,1711554638478,-365.65,0.00030522,2]
[320779552,1711554638488,-365.65,0.00030604,2]
[320779554,1711554638500,-365.65,0.00030686,2]
[320779556,1711554638511,-159.75953502,0.00030695,2]
[320779558,1711554638521,-365.65,0.00030767,2]
[320779560,1711554638531,-394.17427848,0.00030839,2]
[320779562,1711554638540,-365.65,0.00030849,2]
[320779564,1711554638550,-365.65,0.00030931,2]
[320779566,1711554638560,-150.3,0.00030936,2]
[320779568,1711554638569,-350.0,0.00031,3]
[320779570,1711554638578,-365.65,0.00031012,2]
[320779572,1711554638587,-365.65,0.00031094,2]
[320779574,1711554638596,-365.65,0.00031176,2]
[320779576,1711554638606,-365.65,0.00031258,2]
[320779578,1711554638615,-413.43133259,0.00031302,2]
[320779580,1711554638625,-394.17427848,0.00031302,2]
[320779582,1711554638634,-394.17427848,0.00031302,2]
[320779584,1711554638643,-394.17427848,0.00031302,2]
[320779586,1711554638652,-394.17427848,0.00031302,2]
[320779589,1711554638662,-394.17427848,0.00031302,2]
[320779591,1711554638671,-394.17427848,0.00031302,2]
[320779593,1711554638684,-394.17427848,0.00031302,2]
[320779595,1711554638693,-394.17427848,0.00031302,2]